bitfinex/quotes_BTCUSD_20230117
["timestamp","ask_amount","ask_price","bid_price","bid_amount"]
[1673968200764,0.9379,21325.0,21320.0,0.47540545]
[1673968201265,0.9379,21325.0,21320.0,0.6661314]
[1673968201830,0.94578394,21327.0,21321.0,0.36791948]
[1673968202057,0.468933,21325.0,21322.0,0.51183695]
[1673968202312,0.468933,21325.0,21321.0,1.30593848]
[1673968202313,0.468933,21325.0,21321.0,0.53693548]
[1673968202589,0.937866,21325.0,21321.0,0.06791948]
[1673968202820,1.42360246,21325.0,21320.0,0.47540745]
[1673968203084,1.59846664,21325.0,21320.0,0.00638045]
[1673968203344,1.59846664,21325.0,21320.0,0.1971064]
[1673968203897,1.42360246,21325.0,21320.0,0.00638045]
[1673968204145,1.92895778,21325.0,21320.0,0.1971064]
[1673968204659,1.42360246,21325.0,21320.0,0.1971064]
[1673968205678,1.42360246,21325.0,21320.0,0.19700171]
[1673968206956,1.66339104,21325.0,21320.0,0.00627576]
[1673968207213,2.64594805,21325.0,21320.0,0.00627576]
[1673968207483,0.321111,21324.0,21320.0,0.19700171]
[1673968207805,2.64594805,21325.0,21320.0,0.00627576]
[1673968207806,1.638959,21323.0,21320.0,0.00627576]
[1673968207979,1.406942,21323.0,21320.0,0.00627576]
[1673968209067,0.937961,21323.0,21320.0,0.00627576]
[1673968210665,0.75648018,21322.0,21320.0,0.00627576]
[1673968210927,1.170059,21321.0,21320.0,0.00627576]
[1673968211970,1.320059,21321.0,21320.0,0.00627576]
[1673968212249,1.170059,21321.0,21320.0,0.00627576]
[1673968213864,1.320059,21321.0,21320.0,0.00627576]
[1673968214120,1.320059,21321.0,21320.0,7.576e-05]
[1673968214121,2.01970421,21321.0,21320.0,7.576e-05]
[1673968214556,2.01970421,21321.0,21319.0,0.00638045]
[1673968214557,0.57333099,21320.0,21319.0,0.00638045]
[1673968214822,1.71884031,21320.0,21319.0,0.00638045]
[1673968215082,1.68252799,21320.0,21319.0,0.00638045]
[1673968218288,0.81508394,21325.0,21319.0,0.07658959]
[1673968218537,0.12852,21328.0,21320.0,0.51183695]
[1673968218538,0.13838911,21328.0,21320.0,0.51183695]
[1673968218787,0.41763196,21327.0,21321.0,0.81183695]
[1673968219024,0.41763196,21327.0,21322.0,0.19072595]
[1673968219281,0.0001,21330.0,21323.0,0.51183695]
[1673968219524,0.0001,21330.0,21324.0,0.81183695]
[1673968219764,0.0001,21330.0,21325.0,0.51183695]
[1673968220003,0.0001,21330.0,21326.0,0.81183695]
[1673968220255,0.0001,21330.0,21327.0,0.321111]
[1673968220498,0.0001,21330.0,21326.0,0.34072595]
[1673968220741,0.0001,21330.0,21327.0,0.621111]
[1673968221004,0.0001,21330.0,21328.0,0.321111]
[1673968221251,0.0001,21330.0,21329.0,0.321111]
[1673968221510,0.0001,21330.0,21329.0,0.81183695]
[1673968221780,0.0001,21330.0,21329.0,0.621111]
[1673968222777,0.0001,21330.0,21329.0,0.321111]
[1673968223014,0.0001,21330.0,21329.0,0.621111]
[1673968223270,0.0001,21330.0,21329.0,0.321111]
[1673968223532,0.0001,21330.0,21329.0,0.621111]
[1673968223775,0.0001,21330.0,21329.0,0.321111]
[1673968224281,0.0001,21330.0,21329.0,0.621111]
[1673968225097,0.0001,21330.0,21329.0,0.321111]
[1673968225872,0.0001,21330.0,21324.0,0.468937]
[1673968226112,0.0001,21330.0,21325.0,1.18952266]
[1673968226383,0.0001,21330.0,21327.0,0.09032093]
[1673968226632,0.0001,21330.0,21328.0,0.321111]
[1673968226886,0.0001,21330.0,21327.0,0.09032093]
[1673968227430,0.0001,21330.0,21328.0,0.321111]
[1673968227685,0.0001,21330.0,21327.0,0.09032093]
[1673968228226,0.0001,21330.0,21325.0,0.15]
[1673968228542,0.0001,21330.0,21320.0,1.28557822]
[1673968228543,0.78189371,21329.0,21321.0,0.07267617]
[1673968228796,0.468892,21327.0,21321.0,0.07267617]
[1673968229071,1.45144901,21327.0,21319.0,0.15638045]
[1673968229337,1.45144901,21327.0,21319.0,0.00638045]
[1673968229338,0.82646632,21326.0,21319.0,0.00638045]
[1673968229599,0.321111,21325.0,21319.0,0.00638045]
[1673968229873,0.321111,21324.0,21319.0,0.00638045]
[1673968230139,0.97429532,21325.0,21319.0,0.00638045]
[1673968230140,0.97429532,21325.0,21320.0,0.06978483]
[1673968230404,0.46894,21325.0,21320.0,0.19072595]
[1673968230667,0.68486659,21324.0,21320.0,0.19072595]
[1673968230924,0.68486659,21324.0,21319.0,0.00638045]
[1673968231429,0.321111,21323.0,21319.0,0.00638045]
[1673968231713,0.232017,21322.0,21319.0,0.00638045]
[1673968231959,0.321111,21321.0,21319.0,0.00638045]
[1673968232213,0.469017,21322.0,21319.0,0.00638045]
[1673968232214,0.232017,21320.0,21319.0,0.00638045]
[1673968232503,0.469017,21322.0,21319.0,0.00638045]
[1673968232755,0.63011741,21322.0,21320.0,0.02355259]
[1673968233032,0.321111,21321.0,21320.0,0.02355259]
[1673968233258,0.81626604,21321.0,21320.0,0.02355259]
[1673968234027,0.468993,21323.0,21320.0,0.02355259]
[1673968234278,0.468993,21323.0,21320.0,0.21427854]
[1673968234783,0.468993,21323.0,21320.0,0.02355259]
[1673968235042,0.99589264,21325.0,21321.0,0.27095792]
[1673968235043,0.52694864,21325.0,21321.0,0.27095792]
[1673968235319,0.87373556,21327.0,21322.0,0.51183695]
[1673968235582,0.87373556,21327.0,21323.0,0.19072595]
[1673968235583,0.468905,21327.0,21323.0,0.19072595]
[1673968235805,0.468905,21327.0,21324.0,0.19072595]
[1673968236410,0.321111,21326.0,21321.0,0.27028197]
[1673968236622,0.468905,21327.0,21321.0,0.46100792]
[1673968236912,0.468905,21327.0,21321.0,0.42095792]
[1673968237144,0.463905,21327.0,21322.0,0.19072595]
[1673968237401,0.47361618,21326.0,21323.0,0.19072595]
[1673968237714,0.47361618,21326.0,21324.0,0.321111]
[1673968237931,0.47361618,21326.0,21325.0,0.321111]
[1673968238191,0.468852,21329.0,21323.0,0.618976]
[1673968238432,0.52862002,21329.0,21324.0,0.19072595]
[1673968238701,0.468852,21329.0,21324.0,0.19072595]
[1673968239229,0.468852,21329.0,21324.0,0.49072595]
[1673968239483,0.52862002,21329.0,21324.0,0.49072595]
[1673968239742,0.4042062,21328.0,21324.0,0.19072595]
[1673968239994,1.01799685,21328.0,21321.0,0.938017]
[1673968240296,0.05976802,21327.0,21321.0,0.938017]
[1673968240510,0.05976802,21327.0,21320.0,0.50811584]
[1673968240511,0.05976802,21326.0,21320.0,0.50811584]
[1673968240780,0.05976802,21325.0,21320.0,0.50811584]
[1673968241032,0.05976802,21324.0,21320.0,0.50811584]
[1673968241287,0.05976802,21323.0,21320.0,0.03907784]
[1673968241814,0.05976802,21323.0,21321.0,0.321111]
[1673968242076,0.468957,21324.0,21320.0,0.02355259]
[1673968242335,0.52872502,21324.0,21320.0,0.02355259]
[1673968242592,0.468957,21324.0,21320.0,0.02355259]
[1673968242876,0.46258782,21326.0,21321.0,0.20416982]
[1673968243107,0.468878,21328.0,21322.0,0.468988]
[1673968243365,0.468878,21328.0,21323.0,0.51183695]
[1673968243618,0.468878,21328.0,21324.0,0.19072595]
[1673968244903,0.468878,21328.0,21322.0,0.937968]
[1673968244904,0.15153396,21330.0,21325.0,0.19072595]
[1673968245154,0.01314485,21330.0,21326.0,0.19072595]
[1673968245405,0.88270564,21330.0,21327.0,0.19072595]
[1673968245912,0.88270564,21330.0,21325.0,0.468921]
[1673968245913,1.35152864,21330.0,21325.0,0.468921]
[1673968246169,1.72565642,21330.0,21325.0,0.19072595]
[1673968246438,1.41129666,21330.0,21325.0,0.19072595]
[1673968246692,0.88270564,21330.0,21325.0,0.19072595]
[1673968246949,0.94247366,21330.0,21325.0,0.65965395]
[1673968247452,1.73163533,21330.0,21324.0,0.468933]
[1673968247745,0.05976802,21329.0,21323.0,0.01301243]
[1673968248044,0.05976802,21329.0,21323.0,0.20373838]
[1673968248045,0.99752402,21328.0,21323.0,0.20373838]
[1673968248271,0.05976802,21327.0,21321.0,0.938017]
[1673968248557,1.23018502,21326.0,21321.0,0.938017]
[1673968248796,0.05976802,21325.0,21321.0,0.938017]
[1673968249070,0.05976802,21325.0,21321.0,0.469]
[1673968249341,0.52870402,21325.0,21320.0,0.49259359]
[1673968249596,0.05976802,21324.0,21320.0,0.49259359]
[1673968250919,0.468954,21325.0,21320.0,0.49259359]
[1673968251236,0.51043024,21324.0,21320.0,0.02355259]
[1673968251483,0.468981,21323.0,21320.0,0.02355259]
[1673968251748,0.62323902,21323.0,21320.0,0.02355259]
[1673968252319,1.15198404,21323.0,21320.0,0.02355259]
[1673968252615,0.321111,21322.0,21320.0,0.02355259]
[1673968252877,1.09221602,21323.0,21320.0,0.02355259]
[1673968252878,0.468981,21323.0,21320.0,0.02355259]
[1673968253475,0.937958,21323.0,21320.0,0.02355259]
[1673968253722,0.321111,21322.0,21320.0,0.02355259]
[1673968253978,0.232017,21321.0,21320.0,0.02355259]
[1673968254237,0.938042,21321.0,21320.0,0.02355259]
[1673968254990,1.378322,21322.0,21320.0,0.02355259]
[1673968255258,0.909307,21322.0,21320.0,0.02355259]
[1673968255784,1.378306,21322.0,21320.0,0.02355259]
[1673968256046,0.321111,21321.0,21320.0,0.02355259]
[1673968256302,0.938042,21321.0,21320.0,0.02355259]
[1673968256562,1.259153,21321.0,21320.0,0.02355259]
[1673968256810,0.938042,21321.0,21320.0,0.02355259]
[1673968257083,1.259153,21321.0,21320.0,0.02355259]
[1673968258686,0.321111,21321.0,21320.0,0.10406259]
[1673968258929,0.909292,21322.0,21320.0,0.02346137]
[1673968259191,0.469021,21321.0,21320.0,0.02346137]
[1673968259433,0.938042,21321.0,21320.0,0.02346137]
[1673968259773,1.259153,21321.0,21320.0,0.02346137]
[1673968259938,0.938042,21321.0,21320.0,0.02346137]
[1673968260244,0.909306,21322.0,21320.0,0.10397137]
[1673968260484,0.468973,21324.0,21320.0,0.29469732]
[1673968260745,0.46895,21325.0,21320.0,0.29469732]
[1673968260746,0.46895,21325.0,21321.0,0.51183695]
[1673968261018,0.88501876,21325.0,21321.0,0.19072595]
[1673968261518,0.88501876,21325.0,21321.0,0.49072595]
[1673968261519,1.35397276,21325.0,21321.0,0.49072595]
[1673968261765,0.88502576,21325.0,21321.0,0.19072595]
[1673968262484,0.88502576,21325.0,21321.0,0.49072595]
[1673968262743,0.41607176,21325.0,21321.0,1.42876295]
[1673968263021,0.47583978,21325.0,21322.0,0.321111]
[1673968263269,0.41607176,21325.0,21321.0,0.469016]
[1673968263536,0.47583978,21325.0,21321.0,0.469016]
[1673968263762,0.41607176,21325.0,21321.0,0.469016]
[1673968264014,0.41607176,21325.0,21320.0,0.49248637]
[1673968264015,1.41371578,21325.0,21320.0,0.49248637]
[1673968264490,1.41371578,21325.0,21320.0,0.68321232]
[1673968265006,1.49233687,21325.0,21320.0,0.02346137]
[1673968265264,0.27666899,21324.0,21320.0,0.02346137]
[1673968265521,1.39746011,21323.0,21320.0,0.02346137]
[1673968265787,1.13611713,21323.0,21320.0,0.02346137]
[1673968266087,1.07634911,21323.0,21320.0,0.02346137]
[1673968266314,0.321111,21322.0,21320.0,0.02346137]
[1673968266574,1.5641052,21321.0,21320.0,0.02346137]
[1673968267081,1.3320882,21321.0,21320.0,0.02346137]
[1673968267388,1.47047731,21321.0,21320.0,0.02346137]
[1673968267884,0.3940462,21321.0,21320.0,0.02346137]
[1673968268111,0.34613394,21324.0,21320.0,0.36087732]
[1673968268380,0.60733611,21325.0,21321.0,0.51183695]
[1673968268678,0.60733611,21325.0,21322.0,0.51183695]
[1673968268885,0.81504894,21326.0,21322.0,0.19072595]
[1673968269128,1.28334042,21326.0,21322.0,0.19072595]
[1673968269385,0.13838911,21325.0,21322.0,0.19072595]
[1673968269639,1.00945302,21325.0,21320.0,0.49248337]
[1673968269897,1.06922104,21325.0,21320.0,0.68320932]
[1673968270145,1.06922104,21325.0,21320.0,0.96152637]
[1673968270413,1.06922104,21325.0,21320.0,0.49250437]
[1673968270655,0.05976802,21324.0,21320.0,0.02346137]
[1673968270904,0.52873302,21324.0,21320.0,0.02346137]
[1673968271408,0.66712213,21324.0,21320.0,0.02346137]
[1673968271689,0.60735411,21324.0,21320.0,0.02346137]
[1673968274022,0.938042,21321.0,21320.0,0.02346137]
[1673968274268,1.39754211,21321.0,21320.0,0.02346137]
[1673968274778,2.74006358,21321.0,21320.0,0.02346137]
[1673968275138,2.86925055,21321.0,21320.0,0.02346137]
[1673968275390,3.07820839,21321.0,21320.0,0.02346137]
[1673968275927,1.30756931,21321.0,21320.0,0.02346137]
[1673968276175,1.35776357,21321.0,21320.0,0.02346137]
[1673968276449,0.51743731,21321.0,21320.0,0.02346137]
[1673968277227,0.66743731,21321.0,21320.0,0.02346137]
[1673968277482,0.98645831,21321.0,21320.0,0.02346137]
[1673968277737,1.73662509,21321.0,21320.0,0.02346137]
[1673968277997,1.44685757,21321.0,21320.0,0.02346137]
[1673968278540,1.79348521,21321.0,21320.0,0.02346137]
[1673968278799,2.73691867,21321.0,21320.0,0.02346137]
[1673968279226,1.784771,21321.0,21320.0,0.02346137]
[1673968279241,2.13223432,21321.0,21320.0,0.02346137]
[1673968279492,2.61662659,21321.0,21320.0,0.02346137]
[1673968279743,2.56916327,21321.0,21320.0,0.02346137]
[1673968279996,2.26916327,21321.0,21320.0,0.02346137]
[1673968280511,2.85713402,21321.0,21320.0,0.02346137]
[1673968280763,2.10313022,21321.0,21320.0,0.02346137]
[1673968281292,2.38156105,21321.0,21320.0,0.02346137]
[1673968281551,2.57215122,21321.0,21320.0,0.02346137]
[1673968281810,2.22414508,21321.0,21320.0,0.02346137]
[1673968282058,2.90407955,21321.0,21320.0,0.02346137]
[1673968282317,3.32169722,21321.0,21320.0,0.02346137]
[1673968282867,2.94176275,21321.0,21320.0,0.02346137]
[1673968283078,2.52414508,21321.0,21320.0,0.02346137]
[1673968283855,2.94176275,21321.0,21320.0,0.02346137]
[1673968284155,2.52414508,21321.0,21320.0,0.02346137]
[1673968284365,2.52414508,21321.0,21315.0,0.0075134]
[1673968284366,0.15,21320.0,21310.0,0.15]
[1673968284611,0.15,21320.0,21310.0,0.19072595]
[1673968284612,1.54650497,21317.0,21310.0,0.19072595]
[1673968284869,0.88086924,21316.0,21311.0,0.19072595]
[1673968285123,0.05976802,21317.0,21312.0,1.12916195]
[1673968285436,0.469041,21321.0,21312.0,1.12916195]
[1673968285437,0.60819397,21322.0,21313.0,0.96183695]
[1673968285644,0.52878402,21322.0,21314.0,0.51183695]
[1673968285920,0.52878402,21322.0,21316.0,0.15]
[1673968286171,0.42933109,21323.0,21317.0,1.45001895]
[1673968286415,0.42933109,21323.0,21318.0,0.51183695]
[1673968286416,0.522007,21321.0,21318.0,0.51183695]
[1673968286692,0.522007,21321.0,21317.0,0.938182]
[1673968286693,0.522007,21321.0,21319.0,0.321111]
[1673968286952,0.522007,21321.0,21317.0,0.938182]
[1673968287246,0.58177502,21321.0,21317.0,0.938182]
[1673968287464,0.58177502,21321.0,21312.0,0.27273287]
[1673968287465,0.20876696,21318.0,21312.0,0.27273287]
[1673968287713,0.20876696,21318.0,21311.0,0.0069902]
[1673968287714,1.81687692,21317.0,21311.0,0.0069902]
[1673968287995,1.26673261,21316.0,21311.0,0.0069902]
[1673968288224,1.48696689,21315.0,21311.0,0.0069902]
[1673968288486,0.232017,21314.0,21311.0,0.0069902]
[1673968288729,0.05976802,21314.0,21312.0,0.321111]
[1673968288985,0.0059768,21314.0,21312.0,0.321111]
[1673968289227,0.13917797,21317.0,21312.0,0.321111]
[1673968289483,0.469151,21316.0,21312.0,0.19072595]
[1673968289755,0.469151,21316.0,21311.0,0.0069902]
[1673968290001,0.86716471,21317.0,21311.0,0.96695515]
[1673968290249,0.86716471,21317.0,21312.0,0.66183695]
[1673968290250,0.45780273,21317.0,21312.0,0.66183695]
[1673968290561,0.45780273,21317.0,21313.0,0.321111]
[1673968290756,0.45780273,21317.0,21313.0,0.19072595]
[1673968290757,0.39803471,21317.0,21313.0,0.19072595]
[1673968291028,0.39803471,21317.0,21311.0,0.3069902]
[1673968291029,0.56645077,21317.0,21311.0,0.3069902]
[1673968291265,0.56645077,21317.0,21311.0,0.0069902]
[1673968291266,0.47104459,21315.0,21311.0,0.0069902]
[1673968291532,0.469179,21314.0,21311.0,0.0069902]
[1673968291842,0.52894702,21314.0,21311.0,0.0069902]
[1673968292046,0.14691656,21313.0,21311.0,0.0069902]
[1673968292291,2.31690825,21312.0,21311.0,0.0069902]
[1673968292554,2.81465415,21312.0,21311.0,0.0069902]
[1673968293076,2.16690825,21312.0,21311.0,0.0069902]
[1673968293633,2.66465415,21312.0,21311.0,0.0069902]
[1673968293879,3.81464651,21312.0,21311.0,0.0069902]
[1673968294126,3.46695149,21312.0,21311.0,0.0069902]
[1673968294436,0.0068998,21311.0,21308.0,0.00723255]
[1673968294695,0.34902328,21309.0,21308.0,0.00723255]
[1673968294977,0.34902328,21309.0,21302.0,0.00819704]
[1673968294978,0.15,21308.0,21302.0,0.00819704]
[1673968295256,0.23469,21305.0,21302.0,0.00819704]
[1673968295504,3.53340661,21304.0,21302.0,0.00819704]
[1673968295779,1.41673261,21303.0,21302.0,0.00819704]
[1673968296030,1.71673261,21303.0,21302.0,9.704e-05]
[1673968296293,0.15,21302.0,21300.0,0.624]
[1673968296546,1.87758,21304.0,21300.0,0.624]
[1673968296547,0.321111,21301.0,21300.0,0.624]
[1673968296796,0.39544483,21305.0,21300.0,0.624]
[1673968296797,0.29180491,21303.0,21300.0,0.624]
[1673968297047,0.469334,21307.0,21301.0,0.51183695]
[1673968297303,0.469358,21306.0,21303.0,0.2918049]
[1673968297565,0.47088608,21310.0,21304.0,0.51183695]
[1673968297822,0.47088608,21310.0,21305.0,0.51183695]
[1673968298076,0.00161508,21310.0,21306.0,0.51183695]
[1673968298405,0.00161508,21310.0,21307.0,0.51183695]
[1673968298584,0.00161508,21310.0,21308.0,0.321111]
[1673968298879,0.00161508,21310.0,21304.0,1.57713]
[1673968298880,0.39518122,21310.0,21309.0,0.321111]
[1673968299111,0.9336622,21310.0,21304.0,0.9271]
[1673968299381,0.9336622,21310.0,21303.0,0.2918049]
[1673968299382,0.05976802,21309.0,21303.0,0.2918049]
[1673968299679,0.05976802,21309.0,21304.0,0.19072595]
[1673968299936,0.05976802,21309.0,21305.0,0.321111]
[1673968300186,0.4643862,21310.0,21306.0,0.321111]
[1673968300429,0.4643862,21310.0,21307.0,0.321111]
[1673968300430,1.07394062,21310.0,21307.0,0.321111]
[1673968300673,0.9336542,21310.0,21304.0,0.19072595]
[1673968300937,0.9336542,21310.0,21303.0,0.2918049]
[1673968300938,0.44013139,21308.0,21303.0,0.2918049]
[1673968301197,1.47564671,21307.0,21303.0,0.2918049]
[1673968301456,0.25134583,21306.0,21303.0,0.2918049]
[1673968301698,1.259857,21305.0,21303.0,0.2918049]
[1673968301947,0.938746,21305.0,21303.0,0.2918049]
[1673968302767,0.469373,21305.0,21303.0,0.2918049]
[1673968304036,0.5277454,21304.0,21303.0,0.2918049]
[1673968304279,0.9971404,21304.0,21303.0,0.2918049]
[1673968305303,1.3182514,21304.0,21303.0,0.2918049]
[1673968306125,1.47434209,21304.0,21303.0,0.2918049]
[1673968306336,1.94545309,21304.0,21303.0,0.2918049]
[1673968306847,1.9453493,21304.0,21303.0,0.2918049]
[1673968307831,2.2453493,21304.0,21303.0,0.2918049]
[1673968308338,2.63410235,21304.0,21303.0,0.2918049]
[1673968308590,2.2453493,21304.0,21303.0,0.2918049]
[1673968308837,1.7953493,21304.0,21303.0,0.2918049]
[1673968309096,2.2647443,21304.0,21303.0,0.2918049]
[1673968309606,0.469395,21304.0,21303.0,0.2918049]
[1673968310352,0.469395,21304.0,21303.0,0.2868049]
[1673968310353,0.93879,21304.0,21303.0,0.2868049]
[1673968310609,1.259901,21304.0,21303.0,0.2868049]
[1673968310864,0.790506,21304.0,21303.0,0.2868049]
[1673968311117,0.469395,21304.0,21303.0,0.2868049]
[1673968311374,1.26770769,21304.0,21303.0,0.2868049]
[1673968311635,1.259901,21304.0,21303.0,0.2868049]
[1673968312382,0.469393,21305.0,21303.0,0.2868049]
[1673968312637,0.91968502,21306.0,21303.0,0.2868049]
[1673968312888,0.91968502,21306.0,21303.0,0.47753085]
[1673968313144,0.91968502,21306.0,21303.0,0.2868049]
[1673968314483,1.57487012,21306.0,21303.0,0.2868049]
[1673968314737,1.38903602,21306.0,21303.0,0.2868049]
[1673968315033,1.13903602,21306.0,21303.0,0.2868049]
[1673968315559,0.66967702,21306.0,21303.0,0.2868049]
[1673968315823,0.47089908,21310.0,21304.0,0.19910499]
[1673968316070,0.469297,21309.0,21305.0,0.51183695]
[1673968316340,0.469297,21309.0,21305.0,0.19072595]
[1673968316601,0.89082549,21310.0,21306.0,0.19072595]
[1673968316602,0.00161508,21310.0,21306.0,0.19072595]
[1673968316843,0.00161508,21310.0,21307.0,0.98116095]
[1673968317093,0.00161508,21310.0,21308.0,0.321111]
[1673968317347,0.00161508,21310.0,21307.0,0.469324]
[1673968317640,0.00161508,21310.0,21306.0,0.469339]
[1673968317870,0.44551162,21310.0,21306.0,0.469339]
[1673968318145,0.9999101,21310.0,21305.0,0.469373]
[1673968318373,0.9999101,21310.0,21305.0,0.19072595]
[1673968318374,0.51801816,21309.0,21305.0,0.19072595]
[1673968318623,1.04708318,21309.0,21304.0,1.08310499]
[1673968318896,0.05976802,21308.0,21304.0,1.55249199]
[1673968319135,0.05976802,21308.0,21304.0,1.08310499]
[1673968319136,0.52909402,21308.0,21304.0,1.08310499]
[1673968319674,0.52909402,21308.0,21303.0,0.7562189]
[1673968319675,1.15304946,21308.0,21303.0,0.2868049]
[1673968319963,0.05976802,21307.0,21303.0,0.2868049]
[1673968320254,0.93871,21306.0,21303.0,0.2868049]
[1673968320510,0.99847802,21306.0,21303.0,0.2868049]
[1673968320803,0.93871,21306.0,21303.0,0.2868049]
[1673968321057,0.38348463,21305.0,21303.0,0.2868049]
[1673968321314,0.469395,21304.0,21303.0,0.2868049]
[1673968322155,0.93879,21304.0,21303.0,0.2868049]
[1673968322425,1.73710269,21304.0,21303.0,0.2868049]
[1673968322676,1.75765814,21304.0,21303.0,0.2868049]
[1673968322957,2.03371182,21304.0,21303.0,0.2868049]
[1673968323215,1.259901,21304.0,21303.0,0.2868049]
[1673968323460,0.93879,21304.0,21303.0,0.2868049]
[1673968324789,0.85287863,21305.0,21303.0,0.2868049]
[1673968325052,0.85287563,21305.0,21303.0,0.2868049]
[1673968325314,0.47855086,21310.0,21303.0,0.67240337]
[1673968325315,0.469343,21307.0,21303.0,0.67240337]
[1673968325599,0.469327,21308.0,21304.0,0.51183695]
[1673968325858,0.469327,21308.0,21303.0,0.95109342]
[1673968325859,0.469327,21308.0,21305.0,0.51183695]
[1673968326136,0.9252319,21308.0,21306.0,0.321111]
[1673968326400,0.9252319,21308.0,21303.0,0.95109342]
[1673968326653,1.45430692,21308.0,21303.0,1.14181937]
[1673968326926,1.45430692,21308.0,21303.0,1.61123637]
[1673968326927,0.05976802,21308.0,21303.0,1.61123637]
[1673968327180,0.05976802,21308.0,21304.0,0.321111]
[1673968327447,0.54054251,21310.0,21305.0,0.69976263]
[1673968327702,0.54054251,21310.0,21306.0,0.66183695]
[1673968327972,0.54054251,21310.0,21307.0,0.321111]
[1673968328226,0.54054251,21310.0,21308.0,0.321111]
[1673968328492,0.54054251,21310.0,21306.0,0.619345]
[1673968328754,0.54054251,21310.0,21307.0,0.15]
[1673968329011,0.54054251,21310.0,21308.0,0.321111]
[1673968329271,0.54054251,21310.0,21309.0,0.321111]
[1673968329272,0.00161508,21310.0,21309.0,0.321111]
[1673968330383,0.00161508,21310.0,21309.0,0.790396]
[1673968330636,0.00161508,21310.0,21309.0,0.940396]
[1673968331153,0.00161508,21310.0,21309.0,1.240396]
[1673968331443,0.00561508,21310.0,21309.0,1.50555038]
[1673968331707,0.00561508,21310.0,21309.0,1.20555038]
[1673968331973,0.00561508,21310.0,21309.0,1.50555038]
[1673968332477,0.01131342,21313.0,21310.0,0.15]
[1673968332728,0.01131342,21313.0,21311.0,1.259593]
[1673968332974,0.01131342,21313.0,21312.0,0.321111]
[1673968333225,0.01131342,21313.0,21312.0,1.559549]
[1673968333487,0.00631342,21313.0,21312.0,1.259549]
[1673968334222,0.00631342,21313.0,21312.0,1.559549]
[1673968334480,0.00631342,21313.0,21312.0,1.259549]
[1673968334999,0.04831342,21313.0,21312.0,1.263549]
[1673968335510,0.04831342,21313.0,21312.0,0.325111]
[1673968335763,0.00631342,21313.0,21312.0,0.321111]
[1673968336050,0.01031342,21313.0,21312.0,0.371111]
[1673968336281,0.01031342,21313.0,21312.0,0.321111]
[1673968336538,0.01031342,21313.0,21311.0,0.62779205]
[1673968336791,0.01031342,21313.0,21312.0,0.321111]
[1673968337306,0.01031342,21313.0,21311.0,0.15855105]
[1673968337559,0.05231342,21313.0,21312.0,0.004]
[1673968337812,0.05231342,21313.0,21312.0,0.07719]
[1673968338310,0.00631342,21313.0,21312.0,0.394301]
[1673968338568,0.00731342,21313.0,21312.0,0.394301]
[1673968338831,0.00631342,21313.0,21312.0,0.394301]
[1673968339095,0.04831342,21313.0,21312.0,0.398301]
[1673968339349,0.00631342,21313.0,21312.0,0.86352]
[1673968339636,0.04831342,21313.0,21312.0,0.86752]
[1673968340662,0.04831342,21313.0,21312.0,1.332739]
[1673968340663,0.00631342,21313.0,21312.0,1.332739]
[1673968340909,0.04831342,21313.0,21312.0,1.336739]
[1673968341936,0.04831342,21313.0,21312.0,0.86752]
[1673968342200,0.11407208,21313.0,21312.0,0.004]
[1673968342511,1.80799719,21313.0,21312.0,0.004]
[1673968342756,2.30575433,21313.0,21312.0,0.004]
[1673968343014,2.78295602,21313.0,21312.0,0.004]
[1673968343276,3.22232233,21313.0,21312.0,0.004]
[1673968343527,3.8464245,21313.0,21312.0,0.004]
[1673968343778,0.00039999,21311.0,21303.0,0.2868049]
[1673968344046,0.93858,21309.0,21304.0,0.13895987]
[1673968344288,0.05976802,21308.0,21304.0,0.13895987]
[1673968344573,1.43633714,21309.0,21304.0,0.13895987]
[1673968344574,0.05976802,21307.0,21304.0,0.13895987]
[1673968344891,0.05976802,21306.0,21303.0,0.2868049]
[1673968344900,1.00632071,21306.0,21303.0,0.2868049]
[1673968345187,1.35583785,21305.0,21303.0,0.2868049]
[1673968345440,1.170807,21304.0,21303.0,0.2868049]
[1673968345729,1.66856414,21304.0,21303.0,0.2868049]
[1673968345980,1.38459851,21304.0,21303.0,0.2868049]
[1673968346233,2.6311952,21304.0,21303.0,0.2868049]
[1673968346536,2.82895234,21304.0,21303.0,0.2868049]
[1673968346771,3.14847219,21304.0,21303.0,0.2868049]
[1673968347031,3.14847219,21304.0,21303.0,0.29503691]
[1673968347032,2.65071505,21304.0,21303.0,0.29503691]
[1673968347534,2.17351336,21304.0,21303.0,0.29503691]
[1673968347759,2.26851336,21304.0,21303.0,0.29503691]
[1673968348012,2.17351336,21304.0,21303.0,0.29503691]
[1673968348261,2.26851336,21304.0,21303.0,0.29503691]
[1673968348510,2.17351336,21304.0,21303.0,0.29503691]
[1673968348764,2.26851336,21304.0,21303.0,0.29503691]
[1673968349742,1.70411836,21304.0,21303.0,0.29503691]
[1673968350245,2.2018755,21304.0,21303.0,0.29503691]
[1673968350758,2.2968755,21304.0,21303.0,0.29503691]
[1673968351003,2.81860306,21304.0,21303.0,0.29503691]
[1673968351258,3.88620729,21304.0,21303.0,0.29503691]
[1673968351511,3.32698763,21304.0,21303.0,0.29503691]
[1673968351778,3.42198763,21304.0,21303.0,0.29503691]
[1673968352019,3.2132441,21304.0,21303.0,0.29503691]
[1673968352272,4.18576262,21304.0,21303.0,0.29503691]
[1673968352524,3.5719734,21304.0,21303.0,0.29503691]
[1673968353049,3.4769734,21304.0,21303.0,0.29503691]
[1673968353364,2.77407719,21304.0,21303.0,0.29503691]
[1673968353609,3.07407719,21304.0,21303.0,0.29492306]
[1673968354147,3.21322987,21304.0,21303.0,0.29492306]
[1673968355445,3.07407719,21304.0,21303.0,0.29492306]
[1673968355711,2.77407719,21304.0,21300.0,0.58336542]
[1673968355980,0.321111,21303.0,21300.0,0.58336542]
[1673968356219,1.640334,21302.0,21300.0,0.58336542]
[1673968356471,0.321111,21301.0,21300.0,0.58336542]
[1673968356792,0.469461,21301.0,21300.0,0.58336542]
[1673968357730,0.62311902,21301.0,21300.0,0.58336542]
[1673968358000,1.7560882,21301.0,21300.0,0.58336542]
[1673968358765,1.355033,21301.0,21300.0,0.58336542]
[1673968359279,0.564461,21301.0,21300.0,0.58336542]
[1673968360049,0.095,21301.0,21300.0,0.48336542]
[1673968361107,0.095,21301.0,21300.0,1.14357437]
[1673968361324,0.095,21301.0,21300.0,1.27395942]
[1673968362096,0.46133207,21305.0,21300.0,1.27395942]
[1673968362341,0.46133207,21305.0,21301.0,0.66183695]
[1673968362596,0.46133207,21305.0,21302.0,0.321111]
[1673968362853,0.93070707,21305.0,21300.0,0.48336542]
[1673968363153,1.54584809,21305.0,21300.0,0.67409137]
[1673968363372,1.54584809,21305.0,21300.0,0.48336542]
[1673968363373,0.20152211,21304.0,21300.0,0.48336542]